[Event "Azerbaijan-ch 1st League 2025"]
[Site "Baku"]
[Date "2025.01.10"]
[Round "5.8"]
[White "Garayev, Kanan"]
[Black "Alizada, Agshin"]
[Result "1-0"]
[Annotator "TA"]
[ECO "D38"]
[WhiteElo "2340"]
[BlackElo "2116"]
[PlyCount "113"]
[EventDate "2025.01.05"]
[EventType "swiss"]
[EventCountry "AZE"]
[SourceTitle "playchess.com"]
[Source "ChessBase"]
[SourceQuality "1"]
[TimeControl "40/5400+30:1800+30"]

{[%evp 19,113,0,0,0,0,0,0,8,23,13,26,36,39,39,47,35,38,2,9,-29,-24,-51,0,0,106,95,150,11,9,24,8,9,7,3,125,116,119,116,123,122,122,67,75,44,59,58,67,61,68,70,54,38,38,46,80,35,34,31,36,36,37,38,40,37,35,35,35,35,69,24,47,47,56,28,28,0,0,-63,-73,-137,-109,-98,-63,-63,-63,-63,0,0,29964,12635,29991,29992,29994,29994,29994,29995]} 1. d4 {[%emt 0:00:02]} e6 {[%emt 0:04:12]} 2. Nf3 {[%emt 0:01:17]} Nf6 {[%emt 0:00:21]} 3. c4 {[%emt 0:00:24]} Bb4+ {[%emt 0:00:16]} 4. Nc3 {[%emt 0:00:51]} d5 {[%emt 0:01:16]} 5. cxd5 {[%emt 0:01:07]} exd5 {[%emt 0:00:07]} 6. Qa4+ {[%emt 0:00:03]} Nc6 {[%emt 0:00:06]} 7. Bg5 {[%emt 0:00:03]} h6 {[%emt 0:03:45]} 8. Bxf6 {[%emt 0:00:19]} Qxf6 {[%emt 0:00:04]} 9. e3 {[%emt 0:01:11]} O-O {[%emt 0:06:00]} 10. Be2 {[%emt 0:03:44]} Rd8 {[%emt 0:03:07]} 11. O-O {[%emt 0:04:34]} Bf8 {[%emt 0:01:02]} 12. Rac1 {[%emt 0:03:52]} Ne7 {[%emt 0:07:08]} 13. b4 {[%emt 0:15:47]} c6 {[%emt 0:07:33]} 14. b5 {[%emt 0:03:33]} cxb5 {[%emt 0:01:12]} 15. Qxb5 {[%emt 0:02:09]} a6 {[%emt 0:08:45]} 16. Qb3 {[%emt 0:00:15]} Qd6 {[%emt 0:03:34]} 17. Na4 {[%emt 0:01:55]} Nc6 {[%emt 0:11:25]} 18. Qb6 {[%emt 0:08:57][%cal Of3e5]} Bd7 {[%emt 0:03:58]} 19. Nc3 {[%emt 0:01:59]} (19. Qxb7 $2 Rdb8 $19) 19... Bf5 {[%emt 0:09:27]} 20. Na4 {[%emt 0:07:04]} (20. Qxb7 Rdb8 21. Nb5 axb5 (21... Rxb7 22. Nxd6 Bxd6 23. Rxc6 $16) 22. Qxc6 Qxc6 (22... Rxa2 23. Bxb5 Qb4 24. Nh4 $15) 23. Rxc6 Rxa2 $17) 20... Nb4 {[%emt 0:08:29]} (20... Qb4 $15 21. Bd1 Bd3) 21. Qxb7 $11 {[%emt 0:13:21]} Bc2 {[%emt 0:04:09]} (21... Bd7 $11 22. Ne5 Be8 (22... Rab8 23. Qa7 $11)) 22. Ne5 $16 {[%emt 0:10:02]} Qf6 {[%emt 0:14:02]} (22... Be7 $142) 23. Nd7 {[%emt 0:00:57] White is much more active.} (23. Nb6 $16 Rdb8 (23... Rab8 24. Qc7 $11) 24. Qc7 (24. Qxa8 Rxa8 25. Nxa8 Bf5 $18) (24. Ned7 Qd8 $11)) 23... Rxd7 $1 $11 {[%emt 0:00:05]} 24. Qxd7 {[%emt 0:01:27] and a3 would now be decisive} (24. Qxa8 $5 Rd8 $8 (24... Bxa4 $2 25. Rc8 $18) 25. Qb7 Bxa4 26. a3 $11) 24... Rd8 $1 {[%emt 0:00:05]} 25. Qb7 {[%emt 0:02:50]} Bxa4 {[%emt 0:00:31]} 26. a3 {[%emt 0:00:01]} Nc2 {[%emt 0:00:28] [#]} (26... Na2 $11 {remains equal.} 27. Rc7 Bd6) 27. Bd1 $1 $16 {[%emt 0:00:43]} Bxa3 {[%emt 0:02:21][%cal Bf8a3,Ba3c1,Bc1d2][%mdl 32]} 28. Bxc2 {[%emt 0:02:01]} (28. Rxc2 Bxc2 29. Bxc2 Kf8) 28... Bxc1 {[%emt 0:00:17]} 29. Bxa4 {[%emt 0:01:53]} Bd2 {[%emt 0:00:34] Black is weak on the light squares} 30. Rb1 {[%emt 0:01:03]} ({White should try} 30. Rd1 $16 Ba5 31. Bc6) 30... a5 $14 {[%emt 0:00:37]} 31. Rb5 {[%emt 0:02:16]} Be1 {[%emt 0:00:26]} 32. Rb2 {[%emt 0:00:54]} Bb4 {[%emt 0:00:19]} 33. Rc2 {[%emt 0:00:42]} Qf5 {[%emt 0:00:27]} 34. Qc7 {[%emt 0:00:43]} Rf8 {[%emt 0:00:42]} 35. Qd7 {[%emt 0:00:24]} Qxd7 {[%emt 0:00:33]} 36. Bxd7 {[%emt 0:00:02][%mdl 4096] Endgame KRB-KRB} Kh7 {[%emt 0:00:36]} 37. Rc8 {[%emt 0:00:34]} Rxc8 {[%emt 0:00:28]} 38. Bxc8 {[%emt 0:00:02] KB-KB} Kg6 {[%emt 0:00:26]} 39. Bb7 {[%emt 0:00:05]} a4 {[%emt 0:00:03]} 40. Bxd5 {[%emt 0:00:00]} Kf6 {[%emt 0:00:00]} 41. Kf1 {[%emt 0:00:33]} Ke7 {[%emt 0:01:54]} 42. Ke2 {[%emt 0:01:19]} Bd6 {[%emt 0:00:36]} 43. g3 {[%emt 0:05:33]} Bb4 {[%emt 0:00:05]} 44. Kd3 {[%emt 0:00:51]} a3 {[%emt 0:02:48]} 45. e4 {[%emt 0:00:34]} Be1 {[%emt 0:01:46]} 46. f4 {[%emt 0:02:38]} Bf2 {[%emt 0:02:34]} 47. e5 {[%emt 0:32:00]} Bg1 {[%emt 0:00:13]} 48. Bc4 {[%emt 0:01:09]} (48. h3 $11) 48... Bxh2 $15 {[%emt 0:02:57]} 49. d5 {[%emt 0:00:36]} (49. g4 $142) 49... Bxg3 $17 {[%emt 0:00:23]} 50. Ke4 {[%emt 0:00:24]} g6 {[%emt 0:05:50]} 51. d6+ {[%emt 0:00:40]} Ke8 {[%emt 0:00:25] White must now prevent ...h5.} 52. f5 $1 {[%emt 0:00:36][%cal Bf4f5,Bf5f6,Bf6f7][%mdl 32]} h5 {[%emt 0:05:33]} (52... gxf5+ $15 53. Kxf5 Kf8) 53. f6 $1 $11 {[%emt 0:00:22][%cal Oc4f7] White wants to mate with Bxf7+!.} h4 $2 {[%emt 0:02:01][%mdl 8192] [#]} (53... Be1 $11) 54. Bxf7+ $1 {[%emt 0:00:10][%mdl 512]} Kd8 {[%emt 0:02:09]} (54... Kxf7 55. d7) 55. Bd5 {[%emt 0:00:38]} (55. Bxg6 $2 Bxe5 56. Bf7 (56. Kxe5 $2 {loses.} a2 $19) 56... Bxf6 $19) 55... Ke8 {[%emt 0:01:16]} 56. f7+ {[%emt 0:00:01]} Kf8 {[%emt 0:00:10]} 57. d7 {[%emt 0:00:04]} 1-0

[Event "Azerbaijan-ch 1st League 2025"]
[Site "Baku"]
[Date "2025.01.10"]
[Round "5.9"]
[White "Hajialiyev, Islam"]
[Black "Salimov, Shovkat"]
[Result "1/2-1/2"]
[Annotator "TA"]
[ECO "B22"]
[WhiteElo "2217"]
[BlackElo "1977"]
[PlyCount "269"]
[EventDate "2025.01.05"]
[EventType "swiss"]
[EventCountry "AZE"]
[SourceTitle "playchess.com"]
[Source "ChessBase"]
[SourceQuality "1"]
[TimeControl "40/5400+30:1800+30"]

{[%evp 19,269,8,18,-10,-17,-16,-17,-14,-11,-20,-14,-21,-19,-51,-14,-45,0,0,0,-12,-12,-12,-13,-28,0,-111,-110,-108,-114,-113,-117,-114,-116,-130,-119,-108,-84,-95,-79,-81,-60,-60,-60,-60,0,0,0,-64,-64,-64,-59,-60,-55,-54,-52,-54,-54,-93,-94,-105,-105,-105,-50,-50,-50,-112,-112,-112,-80,-112,-112,-112,-112,-113,-112,-112,-105,-120,-120,-120,-120,-120,-51,-120,-72,-72,-64,-64,-64,-72,-72,-72,-72,-133,-133,-1009,-680,-310,-608,-1921,-1774,-5498,-5191,-5498,-1556,-3683,-4686,-5161,-5069,-5106,-4133,-5490,-5387,-2428,-1787,-1769,-624,-634,-523,-660,-625,-681,-587,-706,-579,-1356,-707,-621,-459,-387,-327,-2736,-2146,-2164,-1900,-1490,-1357,-1357,-180,-1258,-180,-180,0,-1139,-1108,-975,0,-180,0,-180,-79,-79,-79,-1242,-79,-79,-79,-79,-79,-79,-79,-96,-96,-96,-96,-96,-72,-72,-72,-72,-72,-72,-72,-72,-72,-72,-72,-72,-72,-72,-72,-72,-72,-72,-72,-72,-72,-72,-72,-72,-72,-72,-72,-72,-72,-72,0,-72,-72,-72,-72,-72,-72,-72,-72,-72,-72,-72,0,-72,0,-72,0,-72,-72,-72,-72,-72,-72,-72,-72,-72,-72,-72,-72,-72,-72,-72,-72,-72,-72,-72,-72,-72,-72,-72,-72,-72,-72,-72,-72,-72,-72,-72,-72,-72,0,-12,-10,-10,-10,-10]} 1. e4 {[%emt 0:00:03]} c5 {[%emt 0:00:12]} 2. c3 {[%emt 0:00:06]} Nf6 {[%emt 0:00:20]} 3. e5 {[%emt 0:00:06]} Nd5 {[%emt 0:00:02]} 4. d4 {[%emt 0:00:07]} cxd4 {[%emt 0:00:06]} 5. Nf3 {[%emt 0:00:03]} Nc6 {[%emt 0:00:33]} 6. cxd4 {[%emt 0:00:03]} d6 {[%emt 0:00:17]} 7. Bc4 {[%emt 0:00:09]} e6 {[%emt 0:00:02]} 8. O-O {[%emt 0:00:35]} Be7 {[%emt 0:00:20]} 9. Qe2 {[%emt 0:03:12]} O-O {[%emt 0:03:39]} 10. Rd1 {[%emt 0:01:33]} Qc7 {[%emt 0:07:29]} 11. Nc3 {[%emt 0:14:56]} Nxc3 {[%emt 0:00:12]} 12. bxc3 {[%emt 0:00:01]} dxe5 {[%emt 0:00:12]} 13. dxe5 {[%emt 0:00:13]} b6 {[%emt 0:00:31]} 14. Bf4 {[%emt 0:02:26]} Bb7 {[%emt 0:01:36]} 15. Bd3 {[%emt 0:01:15]} Rfd8 {[%emt 0:13:30]} 16. Rd2 {[%emt 0:42:43]} Rd5 {[%emt 0:20:48]} 17. Rad1 {[%emt 0:00:40]} (17. Nd4 $5) 17... Rad8 {[%emt 0:01:13]} 18. h4 {[%emt 0:09:39]} g6 {[%emt 0:20:38]} 19. Be4 {[%emt 0:02:35]} Rxd2 {[%emt 0:03:35]} 20. Rxd2 {[%emt 0:00:15]} Rxd2 {[%emt 0:01:10]} 21. Qxd2 {[%emt 0:00:31]} Qd8 {[%emt 0:04:53]} 22. Qe3 {[%emt 0:01:20]} (22. Qc2 $11 {keeps the balance.}) 22... Qd1+ $1 $17 {[%emt 0:04:24]} (22... Bxh4 $2 23. Nxh4 Qxh4 24. Bg5 $18) 23. Kh2 {[%emt 0:00:09]} Bc5 $1 {[%emt 0:00:40]} 24. Qd2 {[%emt 0:07:11]} Qxd2 {[%emt 0:00:07]} 25. Nxd2 {[%emt 0:00:09]} Bxf2 {[%emt 0:00:35]} 26. g3 {[%emt 0:00:33]} b5 {[%emt 0:04:35]} 27. Bf3 {[%emt 0:00:48]} Bc5 {[%emt 0:04:59]} 28. Ne4 {[%emt 0:00:22]} Be7 {[%emt 0:00:36]} 29. Nf6+ {[%emt 0:06:38]} Kg7 {[%emt 0:04:16]} 30. Ne8+ {[%emt 0:02:19]} Kf8 {[%emt 0:00:44]} 31. Nf6 {[%emt 0:00:02]} Kg7 {[%emt 0:00:17] Dodges Bh6+} (31... Bxf6 {simplifies} 32. Bxc6 Bxc6 33. exf6 Bd5) 32. Ne8+ {[%emt 0:00:11]} Kf8 {[%emt 0:00:04]} 33. Nf6 $1 {[%emt 0:00:03]} Bxf6 $1 {[%emt 0:02:13]} 34. exf6 $15 {[%emt 0:00:01][%mdl 4096] Endgame KBB-KBN. Black is a pawn up.} Na5 {[%emt 0:00:52]} 35. Be2 {[%emt 0:00:27]} a6 {[%emt 0:00:29]} 36. Bc7 {[%emt 0:00:10]} Nc6 {[%emt 0:01:06]} 37. g4 {[%emt 0:00:39]} Ke8 {[%emt 0:00:24]} 38. g5 {[%emt 0:00:21]} Kd7 {[%emt 0:00:17]} 39. Bf4 {[%emt 0:00:24]} e5 {[%emt 0:00:23]} 40. Be3 {[%emt 0:00:00]} Bc8 {[%emt 0:00:00]} (40... Kd6 $17 41. Bb6 Bc8) 41. Bc5 $1 {[%emt 0:01:21]} Kc7 {[%emt 0:02:39]} 42. Kg3 {[%emt 0:37:11]} (42. c4 $1 $15) 42... Be6 $17 {[%emt 0:01:15]} 43. a3 {[%emt 0:00:00]} Nd8 {[%emt 0:00:25]} 44. Kf2 {[%emt 0:00:00]} Nb7 {[%emt 0:00:19]} 45. Bf8 {[%emt 0:00:00]} Nd6 {[%emt 0:02:32]} 46. Bf3 {[%emt 0:00:00]} Nf5 {[%emt 0:04:36]} 47. h5 {[%emt 0:00:00]} Kb6 {[%emt 0:02:48]} 48. hxg6 {[%emt 0:00:00]} hxg6 {[%emt 0:00:10]} 49. Ke1 {[%emt 0:00:00]} Ne3 {[%emt 0:03:11]} 50. Ke2 {[%emt 0:00:00]} Nd5 {[%emt 0:01:12]} (50... Nc4 $17 51. Bb4 Kc7) 51. Kd2 {[%emt 0:00:00]} ({White should try} 51. Bxd5 $15 Bxd5 52. Bd6) 51... Kc6 {[%emt 0:02:58]} (51... Kc7 52. Bc5 Nb6) 52. a4 {[%emt 0:00:00]} Bf5 {[%emt 0:00:59]} (52... bxa4 $2 53. c4 $18) 53. axb5+ {[%emt 0:00:00]} axb5 {[%emt 0:00:01]} 54. Bxd5+ {[%emt 0:00:00]} Kxd5 $15 {[%emt 0:00:05] KB-KB. Black is a pawn up.} 55. Ke3 {[%emt 0:00:00]} Bb1 {[%emt 0:00:44]} 56. Bb4 {[%emt 0:00:00]} (56. Kd2 $142) 56... Ke6 $1 $17 {[%emt 0:00:14]} 57. Ba5 $2 {[%emt 0:00:00][%mdl 8192]} (57. Bf8 $17) 57... Kf5 $19 {[%emt 0:00:28]} 58. Bc7 {[%emt 0:00:00]} e4 {[%emt 0:00:07]} (58... Kxg5 59. Bxe5 Kf5 60. Bd4 $15) 59. Bf4 {[%emt 0:00:00]} Bd3 {[%emt 0:00:02]} 60. Bc7 {[%emt 0:00:00]} Kxg5 {[%emt 0:00:02]} 61. Bd8 {[%emt 0:00:00]} Kf5 {[%emt 0:00:09]} (61... Kg4 $142 62. Bb6 g5) 62. Be7 {[%emt 0:00:00]} g5 {[%emt 0:00:04]} 63. Bd8 {[%emt 0:00:00]} Kg4 {[%emt 0:00:33]} 64. Kf2 {[%emt 0:00:00]} Kh3 {[%emt 0:00:48]} 65. Bc7 {[%emt 0:00:00]} g4 {[%emt 0:00:28]} 66. Be5 {[%emt 0:00:00]} Bc4 {[%emt 0:01:47]} 67. Bf4 {[%emt 0:00:00]} Kh4 {[%emt 0:01:44]} (67... Bb3 $142 68. Ke3 Bd5) 68. Bg3+ {[%emt 0:00:10]} Kg5 {[%emt 0:00:01]} 69. Be5 {[%emt 0:00:02]} Kf5 {[%emt 0:00:45]} 70. Bd4 {[%emt 0:00:17]} Ke6 {[%emt 0:00:57]} 71. Ke3 {[%emt 0:01:56]} Kd5 {[%emt 0:00:26]} 72. Ba7 {[%emt 0:01:48]} Bf1 {[%emt 0:01:35]} 73. Kd2 {[%emt 0:01:23]} Bg2 {[%emt 0:00:11]} 74. Ke3 {[%emt 0:01:14]} Bf3 {[%emt 0:00:07]} 75. Bb6 $2 {[%emt 0:01:15]} (75. Bb8) 75... Kc4 {[%emt 0:00:14]} 76. Kd2 {[%emt 0:00:09]} g3 {[%emt 0:00:30]} 77. Bc7 {[%emt 0:00:47]} g2 {[%emt 0:00:05]} 78. Bb6 {[%emt 0:00:07]} Kd5 $2 {[%emt 0:00:10]} (78... b4 79. cxb4 Kxb4) 79. Ke1 $2 {[%emt 0:00:36]} (79. Bg1) 79... Ke6 $2 {[%emt 0:09:21]} (79... Kd6 80. Ba7 Ke5 81. Bd4+ Ke6) 80. Bd4 {[%emt 0:00:22]} Kd5 $2 {[%emt 0:03:16]} (80... Bh5 $19 {and ...Kd5 would now be decisive} 81. Kd2 Kf5) 81. Ba7 $2 {[%emt 0:00:45][%mdl 8192]} (81. Bb6 $11 Ke6 82. Bd4) 81... Kc4 {[%emt 0:00:08]} 82. Kd2 {[%emt 0:00:08]} Kd5 $2 {[%emt 0:00:11]} (82... b4 83. cxb4 Kxb4) 83. Ke1 $1 {[%emt 0:00:21]} Ke6 {[%emt 0:00:04]} 84. Bd4 $1 {[%emt 0:00:07] [#]} g1=B {[%emt 0:00:04]} 85. Bxg1 $17 {[%emt 0:00:05]} Kxf6 {[%emt 0:00:03]} 86. Bd4+ $2 {[%emt 0:02:15][%mdl 8192] [#]} (86. Kf2 $17) 86... Kf5 $2 {[%emt 0:00:12]} (86... Kg5 $1 $19 {is more deadly.} 87. Kd2 f5) 87. Kf2 {[%emt 0:00:15]} Kf4 {[%emt 0:00:40]} 88. Ba7 {[%emt 0:01:17]} Ke5 {[%emt 0:00:34]} 89. Ke3 {[%emt 0:00:12]} Kd5 {[%emt 0:01:04]} 90. Bd4 {[%emt 0:00:49]} f5 {[%emt 0:01:36][%cal Ob5b4]} 91. Bg7 {[%emt 0:01:35]} Kc4 {[%emt 0:00:32][%cal Of5f4]} 92. Be5 {[%emt 0:00:23]} Bg4 {[%emt 0:03:55]} 93. Kd2 {[%emt 0:00:24]} Bh5 {[%emt 0:00:15]} 94. Ke3 {[%emt 0:01:33]} Bg6 {[%emt 0:00:19][%cal Of5f4]} 95. Kd2 {[%emt 0:00:02]} Bh7 {[%emt 0:00:27]} 96. Bf4 {[%emt 0:00:38]} Kd5 {[%emt 0:00:28]} 97. Ke3 {[%emt 0:00:15]} Bg8 {[%emt 0:00:07]} 98. Kd2 {[%emt 0:00:19]} Kc4 {[%emt 0:00:07]} 99. Be3 {[%emt 0:00:11]} Bf7 {[%emt 0:00:11]} 100. Bf4 {[%emt 0:00:17]} Bh5 {[%emt 0:00:26]} 101. Be3 {[%emt 0:00:23]} Bg4 {[%emt 0:00:12]} 102. Bf4 {[%emt 0:00:11]} Kd5 {[%emt 0:00:05]} 103. Ke3 {[%emt 0:00:11]} Ke6 {[%emt 0:00:09]} 104. Bg3 {[%emt 0:00:20]} Kf6 {[%emt 0:00:12]} 105. Bh4+ {[%emt 0:00:21]} Kg6 {[%emt 0:00:54]} 106. Kf4 {[%emt 0:00:07]} Kh5 {[%emt 0:00:06]} 107. Bf2 {[%emt 0:00:09]} Kg6 {[%emt 0:00:01]} 108. Bh4 $1 {[%emt 0:00:39]} Bh3 {[%emt 0:00:18]} 109. Bg3 {[%emt 0:00:26]} Kf7 {[%emt 0:00:07]} 110. Ke3 {[%emt 0:00:13]} Ke6 {[%emt 0:00:07]} 111. Bf4 {[%emt 0:00:18]} Kd5 {[%emt 0:00:03]} 112. Kd2 {[%emt 0:00:07]} Kc4 {[%emt 0:00:28]} 113. Be3 {[%emt 0:00:10]} Kd5 {[%emt 0:00:16]} 114. Bf4 {[%emt 0:00:01]} Bg4 {[%emt 0:00:05]} 115. Ke3 {[%emt 0:00:08]} Kc4 {[%emt 0:00:08]} 116. Kd2 $1 {[%emt 0:00:01]} Kb3 {[%emt 0:01:15]} 117. Be3 {[%emt 0:00:14]} Bd1 {[%emt 0:02:32]} 118. Bf4 {[%emt 0:00:21]} Bc2 {[%emt 0:00:02]} 119. Be3 {[%emt 0:00:11]} Bd3 {[%emt 0:00:03]} 120. Bf4 {[%emt 0:00:13]} Kc4 {[%emt 0:00:04]} 121. Be3 {[%emt 0:00:10]} Bb1 {[%emt 0:00:03]} 122. Bf4 {[%emt 0:00:23]} Kd5 {[%emt 0:00:01]} 123. Ke3 {[%emt 0:00:25]} Ke6 {[%emt 0:00:15]} 124. Kd2 {[%emt 0:00:31]} Kf6 {[%emt 0:00:16]} 125. Ke3 {[%emt 0:00:07]} Kg6 {[%emt 0:00:01]} 126. Kf2 {[%emt 0:00:12]} Kh5 {[%emt 0:00:07]} 127. Kg3 {[%emt 0:00:10]} Bd3 {[%emt 0:00:02]} 128. Be3 {[%emt 0:00:07]} Kg6 {[%emt 0:00:06]} 129. Bf4 {[%emt 0:00:07]} Kf6 {[%emt 0:00:04]} 130. Kf2 {[%emt 0:00:03]} Ke6 {[%emt 0:00:04]} 131. Ke3 {[%emt 0:00:04]} Kd5 {[%emt 0:00:04]} 132. Kd2 {[%emt 0:00:09]} Bb1 {[%emt 0:00:17]} ({Black should try} 132... Bf1 $17 133. Ke3 Bh3) 133. Bg5 {[%emt 0:00:16]} Ke5 {[%emt 0:01:18]} 134. Ke3 {[%emt 0:00:22]} Bc2 {[%emt 0:00:38]} 135. Bf4+ {[%emt 0:00:16]} 1/2-1/2

[Event "Azerbaijan-ch 1st League 2025"]
[Site "Baku"]
[Date "2025.01.10"]
[Round "5.10"]
[White "Musayev, Eldar"]
[Black "Isfandiyarli, Kamal"]
[Result "1/2-1/2"]
[Annotator "TA"]
[ECO "C13"]
[WhiteElo "2163"]
[BlackElo "2027"]
[PlyCount "87"]
[EventDate "2025.01.05"]
[EventType "swiss"]
[EventCountry "AZE"]
[SourceTitle "playchess.com"]
[Source "ChessBase"]
[SourceQuality "1"]
[TimeControl "40/5400+30:1800+30"]

{[%evp 17,87,18,23,22,30,28,78,36,48,48,35,40,41,35,38,30,29,29,36,28,39,25,27,0,0,0,0,0,0,0,0,0,0,0,0,0,18,9,9,9,10,10,17,0,18,0,39,0,0,0,0,0,0,0,0,0,0,0,0,0,0,0,0,0,0,0,0,0,0,0,0,0]} 1. Nf3 {[%emt 0:00:06]} d5 {[%emt 0:04:14]} 2. d4 {[%emt 0:02:45]} Nf6 {[%emt 0:00:09]} 3. Nc3 {[%emt 0:00:45]} e6 {[%emt 0:00:36]} 4. Bg5 {[%emt 0:00:23]} Be7 {[%emt 0:01:19]} 5. Bxf6 {[%emt 0:05:31]} Bxf6 {[%emt 0:00:34]} 6. e4 {[%emt 0:00:02]} dxe4 {[%emt 0:08:11]} 7. Nxe4 {[%emt 0:00:05]} Nd7 {[%emt 0:04:13]} 8. c3 {[%emt 0:17:23]} b6 {[%emt 0:01:34]} 9. Bd3 {[%emt 0:14:15]} Bb7 {[%emt 0:00:14]} 10. Qe2 {[%emt 0:00:39]} Be7 {[%emt 0:08:57]} 11. O-O-O {[%emt 0:00:56]} Nf6 {[%emt 0:00:38]} (11... O-O $11) 12. Rhe1 {[%emt 0:06:14] White is more active.} O-O {[%emt 0:08:29]} 13. Ne5 {[%emt 0:13:27]} Nxe4 {[%emt 0:11:33]} 14. Bxe4 {[%emt 0:00:09]} Bxe4 {[%emt 0:00:06]} 15. Qxe4 {[%emt 0:00:02]} Bd6 {[%emt 0:00:07]} 16. Re3 {[%emt 0:10:21]} Bxe5 {[%emt 0:14:14]} 17. dxe5 {[%emt 0:00:44]} Qe7 {[%emt 0:00:32]} 18. Red3 {[%emt 0:01:36]} Rad8 {[%emt 0:01:58]} 19. g3 {[%emt 0:01:15]} h6 {[%emt 0:05:05]} 20. Qc6 {[%emt 0:01:47]} Rxd3 {[%emt 0:00:57]} 21. Rxd3 $11 {[%emt 0:00:02][%mdl 4096] Endgame KQR-KQR} Rd8 $1 {[%emt 0:00:32] Wards off Rd7} 22. Kc2 {[%emt 0:06:57]} Rxd3 {[%emt 0:01:58]} 23. Kxd3 {[%emt 0:00:02] KQ-KQ} Qd8+ {[%emt 0:00:07]} 24. Kc2 {[%emt 0:03:00]} a5 {[%emt 0:00:25]} 25. f4 {[%emt 0:00:57]} Kf8 {[%emt 0:00:58]} 26. a4 {[%emt 0:01:09]} Ke7 {[%emt 0:00:56]} 27. b4 {[%emt 0:03:23]} Qd7 {[%emt 0:00:40]} 28. Qxd7+ {[%emt 0:01:05]} Kxd7 {[%emt 0:00:02] KP-KP} 29. Kd3 {[%emt 0:00:17]} c5 {[%emt 0:10:22]} 30. Kc4 {[%emt 0:01:32] aiming for bxa5.} Kc6 {[%emt 0:01:08]} 31. g4 {[%emt 0:04:38]} g6 {[%emt 0:00:07]} 32. h4 {[%emt 0:04:22]} cxb4 {[%emt 0:09:07]} 33. cxb4 {[%emt 0:00:06]} h5 {[%emt 0:01:00]} 34. gxh5 {[%emt 0:00:35]} gxh5 {[%emt 0:00:02]} 35. bxa5 {[%emt 0:00:55]} bxa5 {[%emt 0:00:01]} 36. Kd4 {[%emt 0:00:01]} Kb6 {[%emt 0:00:18]} 37. Kc4 {[%emt 0:00:39]} Kc6 {[%emt 0:00:03]} 38. Kd4 {[%emt 0:00:01]} Kb6 {[%emt 0:00:06]} 39. f5 {[%emt 0:00:55]} Kc6 {[%emt 0:02:38]} (39... exf5 $5 40. Ke3 $8 Kc5 $16) 40. fxe6 {[%emt 0:00:00]} (40. f6 $5) 40... fxe6 {[%emt 0:00:00]} 41. Kc4 {[%emt 0:01:13]} Kb6 {[%emt 0:00:21]} 42. Kd4 {[%emt 0:00:05]} Kc6 {[%emt 0:00:04]} 43. Kc4 {[%emt 0:00:02]} Kb6 {[%emt 0:00:08]} 44. Kd4 {[%emt 0:00:03]} 1/2-1/2

[Event "Azerbaijan-ch 1st League 2025"]
[Site "Baku"]
[Date "2025.01.10"]
[Round "5.11"]
[White "Alizada, Pasham"]
[Black "Rzayev, Chingiz"]
[Result "1-0"]
[Annotator "TA"]
[ECO "B01"]
[WhiteElo "2117"]
[BlackElo "2153"]
[PlyCount "75"]
[EventDate "2025.01.05"]
[EventType "swiss"]
[EventCountry "AZE"]
[SourceTitle "playchess.com"]
[Source "ChessBase"]
[SourceQuality "1"]
[TimeControl "40/5400+30:1800+30"]

{[%evp 12,75,49,24,52,30,31,24,71,63,109,-14,-12,-17,-18,-18,-16,-15,-8,-19,-28,-25,-16,-25,0,-4,-29,-20,0,0,-14,-25,0,0,0,0,0,0,0,0,0,0,50,0,0,0,0,0,127,130,133,119,170,125,131,132,627,562,760,693,762,725,2983,2029,4718,4714]} 1. e4 {[%emt 0:00:01]} d5 {[%emt 0:00:49]} 2. exd5 {[%emt 0:01:59]} Nf6 {[%emt 0:00:04]} 3. Nf3 {[%emt 0:00:29]} Qxd5 {[%emt 0:00:04]} 4. Nc3 {[%emt 0:00:13]} Qa5 {[%emt 0:00:28]} 5. d4 {[%emt 0:00:04]} Bg4 {[%emt 0:00:15]} 6. h3 {[%emt 0:00:13]} Bh5 {[%emt 0:00:15]} 7. Bd2 {[%emt 0:01:50]} c6 {[%emt 0:04:37]} 8. Ne4 {[%emt 0:03:50]} Qc7 {[%emt 0:00:35]} 9. Nxf6+ {[%emt 0:03:03]} exf6 {[%emt 0:01:16]} (9... gxf6 $11 10. Be2 Nd7) 10. Qe2+ $16 {[%emt 0:01:19]} Be7 {[%emt 0:00:59]} (10... Qe7 $14 {deserves consideration.}) 11. Bb4 {[%emt 0:02:14] White is more active.} (11. g4 $16 Bg6 12. O-O-O) 11... Bxf3 $11 {[%emt 0:05:02]} 12. gxf3 {[%emt 0:00:13] [#]} O-O $1 {[%emt 0:00:09]} 13. Qxe7 {[%emt 0:06:13]} Qxe7+ {[%emt 0:00:15]} 14. Bxe7 {[%emt 0:00:02]} Re8 {[%emt 0:00:02]} 15. Kd2 {[%emt 0:01:08]} Rxe7 {[%emt 0:00:08]} 16. Bd3 {[%emt 0:00:02]} Nd7 {[%emt 0:00:20]} 17. Rhe1 {[%emt 0:00:19]} Rae8 {[%emt 0:00:09]} 18. Rxe7 {[%emt 0:01:58]} Rxe7 {[%emt 1:24:03][%mdl 4096] Endgame KRB-KRN} 19. b4 {[%emt 0:00:06]} g6 {[%emt 0:00:00]} 20. a4 {[%emt 0:03:29]} Nf8 {[%emt 0:00:00]} 21. Bc4 {[%emt 0:11:59]} g5 {[%emt 0:00:00]} 22. Rb1 {[%emt 0:06:12]} Ng6 {[%emt 0:00:00]} 23. b5 $1 {[%emt 0:12:22]} cxb5 {[%emt 0:00:00]} 24. Rxb5 {[%emt 0:03:42]} Nf4 {[%emt 0:00:00]} 25. Bf1 {[%emt 0:09:41]} Rd7 {[%emt 0:00:00]} 26. c3 {[%emt 0:09:08]} Re7 {[%emt 0:00:00]} (26... Kg7 $11) 27. d5 {[%emt 0:02:04]} (27. c4 $14) 27... Kg7 {[%emt 0:00:00]} 28. Bd3 {[%emt 0:01:30]} a6 {[%emt 0:00:00][%cal Ba7a6,Ba6b5][%mdl 32] Dodges c4} 29. Rc5 $1 {[%emt 0:00:22]} Re1 {[%emt 0:00:00]} 30. c4 $16 {[%emt 0:04:58]} Ra1 {[%emt 0:00:00][%cal Oh7h5]} 31. Rc7 {[%emt 0:00:58]} b5 {[%emt 0:00:00]} (31... f5 $16 {was necessary.}) 32. axb5 {[%emt 0:02:54]} axb5 {[%emt 0:00:00]} 33. d6 {[%emt 0:03:08][%cal Bd5d6,Bd6d7][%mdl 32]} Nxd3 $4 {[%emt 0:00:00][%mdl 8192]} (33... Ra2+ $16 34. Bc2 bxc4) 34. d7 $18 {[%emt 0:04:23]} (34. Kxd3 Rd1+ 35. Ke2 Rxd6 $14) 34... Nb2 {[%emt 0:00:00]} 35. Kc2 {[%emt 0:01:49]} Rd1 {[%emt 0:00:00]} 36. c5 {[%emt 0:00:52][%cal Bc4c5,Bc5c6][%mdl 32]} ({And not} 36. Kxb2 bxc4 37. Kc3 Kg6 $15) 36... Kf8 {[%emt 0:00:00]} 37. c6 {[%emt 0:00:10]} Ke7 {[%emt 0:00:00]} 38. Kxb2 {[%emt 0:04:33]} (38. Rc8 Rxd7 39. cxd7 Kxd7 $18) 1-0